fUSD/lending_fUSD_20260123
["ID","MTS","AMOUNT","RATE_DAILY","PERIOD"]
[403147726,1769205040231,-500.0,0.00017019,2]
[403147727,1769205040240,-150.0,0.00017019,2]
[403147728,1769205040249,-500.0,0.00017019,2]
[403147729,1769205040258,-150.0,0.00017019,2]
[403147730,1769205040267,-500.0,0.00017043,2]
[403147731,1769205040276,-3614.45,0.00017043,2]
[403147732,1769205040286,-500.0,0.00017068,2]
[403147733,1769205040297,-500.0,0.00017074,2]
[403147734,1769205040307,-500.0,0.00017074,2]
[403147736,1769205040316,-150.0,0.00017074,2]
[403147737,1769205040324,-150.0,0.00017074,2]
[403147738,1769205040333,-500.0,0.00017074,2]
[403147739,1769205040342,-500.0,0.00017074,2]
[403147740,1769205040351,-150.0,0.00017074,2]
[403147741,1769205040359,-500.0,0.00017074,2]
[403147742,1769205040368,-150.0,0.00017074,2]
[403147743,1769205040376,-3614.45,0.00017078,2]
[403147744,1769205040385,-322.6107,0.00017099,2]
[403147745,1769205040394,-854.2589148,0.00017099,2]
[403147746,1769205040403,-250.0,0.00017099,2]
[403147747,1769205040411,-500.0,0.00017099,2]
[403147748,1769205040420,-500.0,0.00017099,2]
[403147749,1769205040429,-250.0,0.00017099,2]
[403147750,1769205040438,-500.0,0.00017099,2]
[403147751,1769205040447,-500.0,0.00017099,2]
[403147752,1769205040457,-250.0,0.00017099,2]
[403147753,1769205040467,-500.0,0.00017099,2]
[403147754,1769205040476,-500.0,0.00017099,2]
[403147755,1769205040485,-250.0,0.00017099,2]
[403147756,1769205040494,-500.0,0.00017099,2]
[403147757,1769205040504,-174.61919141,0.00017099,2]
[403147758,1769205040513,-500.0,0.00017099,2]
[403147760,1769205040522,-250.0,0.00017099,2]
[403147761,1769205040535,-500.0,0.00017099,2]
[403147762,1769205040544,-500.0,0.00017099,2]
[403147764,1769205040553,-250.0,0.00017099,2]
[403147766,1769205040563,-500.0,0.00017099,2]
[403147768,1769205040572,-250.0,0.00017099,2]
[403147770,1769205040582,-500.0,0.00017099,2]
[403147771,1769205040591,-500.0,0.00017099,2]
[403147772,1769205040601,-250.0,0.00017099,2]
[403147773,1769205040611,-500.0,0.00017099,2]
[403147774,1769205040620,-500.0,0.00017099,2]
[403147775,1769205040629,-500.0,0.00017099,2]
[403147776,1769205040638,-500.0,0.00017099,2]
[403147777,1769205040648,-500.0,0.00017099,2]
[403147778,1769205040657,-500.0,0.00017099,2]
[403147779,1769205040667,-500.0,0.00017099,2]
[403147780,1769205040675,-500.0,0.00017099,2]
[403147781,1769205040685,-500.0,0.00017099,2]
[403147782,1769205040694,-500.0,0.00017099,2]
[403147783,1769205040703,-500.0,0.00017099,2]
[403147784,1769205040713,-250.0,0.00017099,2]
[403147785,1769205040723,-250.0,0.00017099,2]
[403147786,1769205040733,-250.0,0.00017099,2]
[403147787,1769205040742,-250.0,0.00017099,2]
[403147788,1769205040751,-250.0,0.00017099,2]
[403147789,1769205040760,-250.0,0.00017099,2]
[403147790,1769205040769,-250.0,0.00017099,2]
[403147791,1769205040778,-250.0,0.00017099,2]
[403147792,1769205040788,-250.0,0.00017099,2]
[403147793,1769205040797,-250.0,0.00017099,2]
[403147794,1769205040806,-250.0,0.00017099,2]
[403147795,1769205040816,-578.20924308,0.00017099,2]
[403147796,1769205040826,-250.0,0.00017099,2]
[403147797,1769205040836,-250.0,0.00017099,2]
[403147798,1769205040845,-250.0,0.00017099,2]
[403147799,1769205040854,-209.40437684,0.00017099,2]
[403147800,1769205040863,-250.0,0.00017099,2]
[403147801,1769205040872,-250.0,0.00017099,2]
[403147802,1769205040881,-250.0,0.00017099,2]
[403147803,1769205040890,-250.0,0.00017099,2]
[403147804,1769205040900,-250.0,0.00017099,2]
[403147805,1769205040909,-2468.0,0.00017099,2]
[403147806,1769205040919,-250.0,0.00017099,2]
[403147807,1769205040929,-250.0,0.00017099,2]
[403147808,1769205040938,-391.18071828,0.00017099,2]
[403147809,1769205040947,-500.0,0.00017099,2]
[403147810,1769205040956,-500.0,0.00017099,2]
[403147811,1769205040967,-500.0,0.00017099,2]
[403147812,1769205040977,-500.0,0.00017099,2]
[403147813,1769205040986,-500.0,0.00017099,2]
[403147814,1769205041002,-500.0,0.00017099,2]
[403147815,1769205041011,-151.0,0.00017099,2]
[403147816,1769205041021,-500.0,0.00017099,2]
[403147817,1769205041032,-500.0,0.00017099,2]
[403147818,1769205041041,-500.0,0.00017099,2]
[403147819,1769205041050,-151.0,0.00017099,2]
[403147820,1769205041059,-151.0,0.00017099,2]
[403147821,1769205041070,-151.0,0.00017099,2]
[403147822,1769205041079,-151.0,0.00017099,2]
[403147823,1769205041088,-151.0,0.00017099,2]
[403147824,1769205041099,-151.0,0.00017099,2]
[403147825,1769205041110,-151.0,0.00017099,2]
[403147826,1769205041120,-151.0,0.00017099,2]
[403147827,1769205041130,-250.0,0.00017099,2]
[403147828,1769205041139,-151.0,0.00017099,2]
[403147829,1769205041150,-250.0,0.00017099,2]
[403147830,1769205041160,-151.0,0.00017099,2]
[403147831,1769205041169,-250.0,0.00017099,2]
[403147832,1769205041179,-250.0,0.00017099,2]
[403147833,1769205041188,-250.0,0.00017099,2]
[403147834,1769205041199,-250.0,0.00017099,2]
[403147835,1769205041209,-250.0,0.00017099,2]
[403147836,1769205041220,-250.0,0.00017099,2]
[403147837,1769205041229,-250.0,0.00017099,2]
[403147838,1769205041239,-250.0,0.00017099,2]
[403147839,1769205041248,-250.0,0.00017099,2]
[403147840,1769205041257,-3614.45,0.00017113,2]
[403147841,1769205041266,-210.27,0.00017123,4]
[403147842,1769205041277,-500.0,0.00017129,2]
[403147843,1769205041286,-500.0,0.00017129,2]
[403147844,1769205041296,-255.80435828,0.00017129,2]
[403147845,1769205041305,-154.75207679,0.00017129,2]
[403147846,1769205041314,-500.0,0.00017129,2]
[403147847,1769205041324,-500.0,0.00017129,2]
[403147848,1769205041332,-150.0,0.00017129,2]
[403147849,1769205041341,-500.0,0.00017129,2]
[403147850,1769205041350,-150.0,0.00017129,2]
[403147851,1769205041358,-3614.45,0.00017148,2]
[403147852,1769205041367,-3614.45,0.00017183,2]
[403147853,1769205041375,-500.0,0.00017183,2]
[403147854,1769205041384,-500.0,0.00017183,2]
[403147855,1769205041395,-500.0,0.00017183,2]
[403147856,1769205041404,-500.0,0.00017183,2]
[403147857,1769205041414,-150.0,0.00017183,2]
[403147858,1769205041423,-500.0,0.00017183,2]
[403147859,1769205041433,-274.27837996,0.00017183,2]
[403147860,1769205041443,-3614.45,0.00017218,2]
[403147861,1769205041456,-420.82470435,0.00017238,2]
[403147862,1769205041467,-500.0,0.00017238,2]
[403147863,1769205041476,-500.0,0.00017238,2]
[403147864,1769205041486,-150.0,0.00017238,2]
[403147865,1769205041495,-500.0,0.00017238,2]
[403147866,1769205041504,-500.0,0.00017293,2]
[403147867,1769205041514,-500.0,0.00017293,2]
[403147868,1769205041524,-250.0,0.00017293,2]
[403147869,1769205041535,-500.0,0.00017293,2]
[403147870,1769205041544,-500.0,0.00017293,2]
[403147871,1769205041553,-150.0,0.00017293,2]
[403147872,1769205041562,-500.0,0.00017293,2]
[403147873,1769205041571,-152.84284681,0.00017293,2]
[403147874,1769205041580,-500.0,0.00017293,2]
[403147875,1769205041589,-500.0,0.00017293,2]
[403147876,1769205041599,-1000.0,0.00017329,2]
[403147877,1769205041610,-500.0,0.00017348,2]
[403147878,1769205041619,-500.0,0.00017348,2]
[403147879,1769205041629,-500.0,0.00017348,2]
[403147880,1769205041639,-500.0,0.00017348,2]
[403147881,1769205041648,-500.0,0.00017348,2]
[403147882,1769205041657,-500.0,0.00017348,2]
[403147883,1769205041666,-500.0,0.00017348,2]
[403147884,1769205041675,-836.0,0.0001736,2]
[403147885,1769205041684,-168.0,0.00017364,2]
[403147886,1769205041693,-500.0,0.00017403,2]
[403147887,1769205041702,-500.0,0.00017403,2]
[403147888,1769205041711,-229.21715423,0.00017403,2]
[403147889,1769205041720,-500.0,0.00017403,2]
[403147890,1769205041730,-500.0,0.00017403,2]
[403147891,1769205041739,-500.0,0.00017403,2]
[403147892,1769205041748,-500.0,0.00017403,2]
[403147893,1769205041758,-176.1,0.00017426,2]
[403147894,1769205041767,-168.0,0.00017429,2]
[403147895,1769205041776,-3805.03029957,0.00017456,2]
[403147896,1769205041785,-500.0,0.00017457,2]
[403147897,1769205041794,-500.0,0.00017457,2]
[403147898,1769205041804,-500.0,0.00017457,2]
[403147899,1769205041813,-500.0,0.00017457,2]
[403147900,1769205041822,-500.0,0.00017457,2]
[403147901,1769205041831,-500.0,0.00017457,2]
[403147902,1769205041841,-974.22590802,0.00017477,2]
[403147903,1769205041851,-178.53575862,0.00017477,2]
[403147904,1769205041860,-3805.03029952,0.00017505,2]
[403147905,1769205041869,-500.0,0.00017512,2]
[403147906,1769205041879,-630.64669746,0.00017512,2]
[403147907,1769205041888,-500.0,0.00017512,2]
[403147908,1769205041897,-255.87876924,0.00017512,2]
[403147909,1769205041907,-500.0,0.00017512,2]
[403147910,1769205041917,-500.0,0.00017512,2]
[403147911,1769205041926,-974.22590795,0.00017524,2]
[403147912,1769205041935,-500.0,0.00017534,7]
[403147913,1769205041944,-500.0,0.00017534,7]
[403147914,1769205041954,-3805.03029952,0.00017555,2]
[403147915,1769205041964,-500.0,0.00017567,2]
[403147916,1769205041974,-460.93814025,0.00017567,2]
[403147917,1769205041983,-500.0,0.00017567,2]
[403147918,1769205041992,-500.0,0.00017567,2]
[403147919,1769205042001,-168.0,0.00017569,2]
[403147920,1769205042010,-974.22590795,0.00017571,2]
[403147921,1769205042020,-1405.24,0.00017577,2]
[403147922,1769205042031,-2730.63,0.00017577,2]
[403147923,1769205042042,-158.35836296,0.00017597,2]
[403147924,1769205042052,-2000.0,0.00017601,2]
[403147925,1769205042062,-2000.0,0.00017601,2]
[403147926,1769205042071,-2000.0,0.00017601,2]
[403147927,1769205042080,-2000.0,0.00017601,2]
[403147928,1769205042089,-2000.0,0.00017601,2]
[403147929,1769205042098,-1276.222,0.00017601,2]
[403147930,1769205042107,-3805.03029952,0.00017604,2]
[403147931,1769205042117,-974.22590795,0.00017618,2]
[403147932,1769205042126,-500.0,0.00017622,2]
[403147933,1769205042135,-500.0,0.00017622,2]
[403147934,1769205042144,-500.0,0.00017622,2]
[403147935,1769205042154,-208.03774045,0.0001764,2]
[403147936,1769205042163,-1000.0,0.00017645,2]
[403147937,1769205042172,-885.86649465,0.00017647,2]
[403147938,1769205042182,-181.08010149,0.00017647,2]
[403147939,1769205042192,-218.7863994,0.00017647,2]
[403147940,1769205042203,-1000.0,0.00017648,2]
[403147941,1769205042212,-3805.03029952,0.00017653,2]
[403147942,1769205042222,-150.65265465,0.00017656,2]
[403147943,1769205042231,-150.0,0.00017656,2]
[403147944,1769205042242,-150.0,0.00017656,2]
[403147945,1769205042251,-500.0,0.00017656,2]
[403147946,1769205042261,-150.0,0.00017656,2]
[403147947,1769205042270,-500.0,0.00017656,2]
[403147948,1769205042279,-500.0,0.00017656,2]
[403147949,1769205042288,-500.0,0.00017656,2]
[403147950,1769205042297,-150.0,0.00017656,2]
[403147951,1769205042307,-500.0,0.00017656,2]
[403147952,1769205042316,-150.0,0.00017656,2]
[403147953,1769205042326,-150.0,0.00017656,2]
[403147954,1769205042335,-500.0,0.00017656,2]
[403147955,1769205042345,-150.0,0.00017656,2]
[403147956,1769205042354,-151.07703537,0.00017656,2]
[403147957,1769205042363,-795.95763591,0.00017656,2]
[403147958,1769205042372,-974.22590795,0.00017665,2]
[403147959,1769205042382,-500.0,0.00017677,2]
[403147960,1769205042391,-490.0,0.00017677,2]
[403147963,1769205042691,-500.0,0.00017677,2]
[403147964,1769205042720,-1000.0,0.00017688,2]
[403147965,1769205042729,-618.24569624,0.00017695,2]
[403147966,1769205042740,-3805.03029952,0.00017703,2]
[403147967,1769205042751,-877.0,0.00017707,2]
[403147968,1769205042760,-500.0,0.00017711,2]
[403147969,1769205042769,-235.3073639,0.00017711,2]
[403147970,1769205042778,-500.0,0.00017711,2]
[403147971,1769205042787,-500.0,0.00017711,2]
[403147972,1769205042796,-500.0,0.00017711,2]
[403147973,1769205042805,-227.55062227,0.00017711,2]
[403147974,1769205042814,-500.0,0.00017711,2]
[403147975,1769205042823,-150.0,0.00017711,2]
[403147976,1769205042832,-150.0,0.00017711,2]
[403147977,1769205042841,-500.0,0.00017711,2]
[403147978,1769205042850,-150.0,0.00017711,2]
[403147979,1769205042859,-974.22590795,0.00017712,2]
[403147980,1769205042868,-1000.0,0.00017721,2]
[403147981,1769205042878,-1000.0,0.00017722,2]
[403147982,1769205042887,-1000.0,0.00017724,2]
[403147983,1769205042896,-1751.30830591,0.0001773,2]
[403147984,1769205042906,-500.0,0.00017731,2]
[403147985,1769205042915,-877.0,0.00017745,2]
[403147986,1769205042924,-600.0,0.00017749,2]
[403147987,1769205042934,-250.0,0.00017749,2]
[403147988,1769205042943,-168.0,0.0001775,2]
[403147989,1769205042952,-3805.03029952,0.00017752,2]
[403147990,1769205042963,-974.22590795,0.00017759,2]
[403147991,1769205042972,-1036.115,0.00017764,2]
[403147992,1769205042981,-182.609,0.00017764,2]
[403147993,1769205042990,-500.0,0.00017766,2]
[403147994,1769205042999,-500.0,0.00017766,2]
[403147995,1769205043009,-500.0,0.00017766,2]
[403147996,1769205043018,-303.53248348,0.00017766,2]
[403147997,1769205043027,-322.45367867,0.00017766,2]
[403147998,1769205043037,-150.0,0.00017766,2]
[403147999,1769205043046,-157.15309479,0.00017766,2]
[403148000,1769205043056,-500.0,0.00017766,2]
[403148001,1769205043065,-219.0,0.00017769,2]
[403148002,1769205043074,-877.0,0.0001777,2]
[403148003,1769205043084,-1000.0,0.00017777,2]
[403148004,1769205043094,-500.0,0.00017786,2]
[403148005,1769205043103,-1042.05,0.00017789,2]
[403148006,1769205043113,-1000.0,0.000178,2]
[403148007,1769205043123,-3805.03029952,0.00017801,2]
[403148008,1769205043133,-974.22590795,0.00017806,2]
[403148009,1769205043142,-500.0,0.00017808,2]
[403148010,1769205043151,-150.0,0.00017808,2]
[403148011,1769205043161,-877.0,0.0001781,2]
[403148012,1769205043171,-1000.0,0.00017817,2]
[403148013,1769205043182,-1059.25601,0.0001782,2]
[403148014,1769205043191,-1059.25601,0.0001782,2]
[403148015,1769205043201,-1059.25602,0.0001782,2]
[403148016,1769205043210,-1059.25602,0.0001782,2]
[403148017,1769205043219,-500.0,0.0001782,2]
[403148018,1769205043230,-500.0,0.0001782,2]
[403148019,1769205043240,-500.0,0.0001782,2]
[403148020,1769205043250,-164.45892503,0.0001782,2]
[403148021,1769205043261,-500.0,0.0001782,2]
[403148022,1769205043271,-6645.66140582,0.0001783,2]
[403148023,1769205043280,-877.0,0.00017838,2]
[403148024,1769205043289,-1000.0,0.0001784,2]
[403148025,1769205043299,-500.0,0.00017841,2]
[403148026,1769205043308,-877.0,0.00017848,2]
[403148027,1769205043318,-3805.03029952,0.00017851,2]
[403148028,1769205043327,-974.22590795,0.00017853,2]
[403148029,1769205043336,-264.96816924,0.0001786,2]
[403148030,1769205043346,-358.5087,0.0001786,2]
[403148031,1769205043355,-500.0,0.00017863,2]
[403148032,1769205043364,-233.97306392,0.00017875,2]
[403148034,1769205043374,-500.0,0.00017875,2]
[403148035,1769205043383,-500.0,0.00017875,2]
[403148036,1769205043392,-281.84582328,0.00017875,2]
[403148037,1769205043402,-1000.0,0.00017876,2]
[403148039,1769205043411,-1000.0,0.00017876,2]
[403148041,1769205043420,-1000.0,0.00017876,2]
[403148043,1769205043430,-1000.0,0.00017876,2]
[403148045,1769205043439,-1000.0,0.00017876,2]
[403148047,1769205043448,-876.427,0.00017876,2]
[403148049,1769205043462,-1000.0,0.00017882,2]
[403148050,1769205043471,-1000.0,0.00017882,2]
[403148051,1769205043481,-1000.0,0.00017885,2]
[403148052,1769205043490,-1000.0,0.0001789,2]
[403148053,1769205043500,-500.0,0.00017896,2]
[403148054,1769205043509,-1000.0,0.00017899,2]
[403148055,1769205043518,-770.0231077,0.000179,2]
[403148056,1769205043529,-25000.0,0.000179,3]
[403148057,1769205043538,-485.78693407,0.000179,2]
[403148058,1769205043547,-16520.97623702,0.000179,3]
[403148059,1769205043557,-1000.0,0.000179,2]
[403148060,1769205043567,-974.22590795,0.000179,2]
[403148061,1769205043576,-3805.03029952,0.000179,2]
[403148062,1769205043585,-178.53575862,0.000179,2]
[403148063,1769205043595,-805.50550802,0.000179,3]
[403148064,1769205043604,-5283.81108714,0.000179,2]
[403148065,1769205043614,-1361.45905748,0.000179,2]
[403148066,1769205043623,-540.06227295,0.000179,2]
[403148067,1769205043633,-674.99408994,0.000179,2]
[403148068,1769205043642,-500.0,0.000179,2]
[403148069,1769205043652,-500.0,0.000179,2]
[403148070,1769205043661,-500.0,0.000179,2]
[403148071,1769205043671,-500.0,0.000179,2]
[403148072,1769205043680,-500.0,0.000179,2]
[403148073,1769205043689,-500.0,0.000179,2]
[403148074,1769205043699,-500.0,0.000179,2]
[403148075,1769205043708,-500.0,0.000179,2]
[403148076,1769205043717,-500.0,0.000179,2]
[403148077,1769205043726,-500.0,0.000179,2]
[403148078,1769205043735,-500.0,0.000179,2]
[403148079,1769205043744,-500.0,0.000179,2]
[403148080,1769205043753,-500.0,0.000179,2]
[403148081,1769205043762,-500.0,0.000179,2]
[403148082,1769205043772,-500.0,0.000179,2]
[403148083,1769205043781,-500.0,0.000179,2]
[403148084,1769205043790,-500.0,0.000179,2]
[403148085,1769205043799,-500.0,0.000179,2]
[403148086,1769205043807,-500.0,0.000179,2]
[403148087,1769205043817,-500.0,0.000179,2]
[403148088,1769205043826,-500.0,0.000179,2]
[403148090,1769205043835,-500.0,0.000179,2]
[403148092,1769205043844,-500.0,0.000179,2]
[403148094,1769205043852,-500.0,0.000179,2]
[403148096,1769205043862,-500.0,0.000179,2]
[403148099,1769205043871,-500.0,0.000179,2]
[403148101,1769205043880,-500.0,0.000179,2]
[403148103,1769205043889,-500.0,0.000179,2]
[403148105,1769205043899,-500.0,0.000179,2]
[403148106,1769205043907,-500.0,0.000179,2]
[403148108,1769205043916,-3179.0,0.000179,2]
[403148111,1769205043925,-1000.0,0.00017905,2]
[403148112,1769205043935,-877.0,0.00017916,2]
[403148114,1769205043944,-500.0,0.00017918,2]
[403148116,1769205043953,-500.0,0.0001793,2]
[403148119,1769205043963,-500.0,0.0001793,2]
[403148121,1769205043972,-500.0,0.00017951,2]
[403148123,1769205043981,-700.0,0.0001797,2]
[403148125,1769205043990,-400.0,0.0001797,2]
[403148127,1769205043999,-700.0,0.0001797,2]
[403148129,1769205044008,-502.67274929,0.0001797,2]
[403148131,1769205044017,-802.43614103,0.0001797,2]
[403148133,1769205044026,-150.0,0.00017973,2]
[403148135,1769205044035,-150.0,0.00017973,2]
[403148137,1769205044044,-500.0,0.00017985,2]
[403148139,1769205044053,-500.0,0.00017985,2]
[403148141,1769205044063,-151.0,0.00017997,2]
[403148142,1769205044072,-150.0,0.00017999,2]
[403148145,1769205044082,-182.86614025,0.00017999,2]
[403148147,1769205044092,-300.0,0.00017999,2]
[403148149,1769205044103,-280.05288915,0.00017999,2]
[403148150,1769205044113,-300.0,0.00017999,2]
[403148153,1769205044123,-182.48947764,0.00017999,2]
[403148155,1769205044132,-416630.2021395,0.00018,2]
[403148157,1769205044141,-4258784.75686396,0.00018,2]
[403148159,1769205044150,-600.0,0.00018,2]
[403148161,1769205044159,-500.0,0.00018,2]
[403148163,1769205044168,-500.0,0.00018,2]
[403148166,1769205044186,-500.0,0.00018,2]
[403148168,1769205044198,-500.0,0.00018,2]
[403148170,1769205044208,-500.0,0.00018,2]
[403148172,1769205044217,-500.0,0.00018,2]
[403148174,1769205044227,-500.0,0.00018,2]
[403148176,1769205044237,-294.74644974,0.00018,2]
[403148178,1769205044247,-150.0,0.00018,2]
[403148180,1769205044256,-2536.75174456,0.00018,2]
[403148182,1769205044266,-150.0,0.00018,2]
[403148184,1769205044275,-4384.97455068,0.00018,2]
[403148186,1769205044285,-150.0,0.00018,2]
[403148188,1769205044294,-3181.8052028,0.00018,2]
[403148190,1769205044304,-344.23489201,0.00018,2]
[403148192,1769205044314,-200.0,0.00018,2]
[403148194,1769205044324,-266.0,0.00018,2]
[403148196,1769205044334,-250.0,0.00018,2]
[403148198,1769205044343,-195.125,0.00018,2]
[403148201,1769205044353,-227.497,0.00018,2]
[403148203,1769205044362,-150.0,0.00018,2]
[403148205,1769205044371,-157.979,0.00018,2]
[403148207,1769205044381,-461.85108349,0.00018,2]
[403148209,1769205044391,-769.42976795,0.00018,2]
[403148211,1769205044400,-217628.5996429,0.00018,2]
[403148213,1769205044410,-28200.23784629,0.00018,2]
[403148219,1769205044465,-461.92439387,0.00018,2]
[403148223,1769205044494,-25751.98746626,0.00018,2]
[403148225,1769205044509,-325.47403664,0.00018,2]
[403148228,1769205044520,-2874.72665604,0.00018,2]
[403148230,1769205044532,-440485.872712,0.00018,2]
[403148236,1769205044575,-89618.65899423,0.00018,2]
[403148238,1769205044587,-2102.7773041,0.00018,2]
[403148241,1769205044610,-4314.1106964,0.00018,2]
[403148271,1769205045201,-26397.14237713,0.00018,2]
[403148272,1769205045212,-314.53480885,0.00018,2]
[403148273,1769205045223,-195372.44969953,0.00018,2]
[403148274,1769205045302,-118.02253549,0.00018,2]
[403148275,1769205045314,-655.979193,0.00018,2]
[403148276,1769205045325,-511.66211449,0.00018,2]
[403148277,1769205045336,-289.04339989,0.00018,2]
[403148278,1769205045739,-448.80928647,0.00018,2]
[403148279,1769205045752,-7773.232497,0.00018,2]
[403148280,1769205045765,-1402.65568326,0.00018,2]
[403148281,1769205045775,-632.28102123,0.00018,2]
[403148282,1769205045787,-1397.18855336,0.00018,2]
[403148283,1769205045810,-4976.17602559,0.00018,2]
[403148284,1769205045821,-800.197906,0.00018,2]
[403148285,1769205045832,-4141.51105221,0.00018,2]
[403148286,1769205045902,-24029.43311997,0.00018,2]
[403148292,1769205046432,-7972.60434713,0.00018,2]
[403148293,1769205046446,-6620.89107931,0.00018,2]
[403148294,1769205046466,-3950.711,0.00018,2]
[403148295,1769205046587,-908.31,0.00018,2]
[403148296,1769205046598,-878.15443804,0.00018,2]
[403148297,1769205046608,-16994.96136171,0.00018,2]
[403148298,1769205046620,-1057.7123853,0.00018,2]
[403148299,1769205100450,2894.88,0.00013698,2]
[403148305,1769206035145,500.0,0.000176,30]
[403148306,1769206035863,500.0,0.000176,30]
[403148307,1769206035986,500.0,0.000176,30]
[403148308,1769206036193,500.0,0.00013,2]
[403148309,1769206041049,505.53076173,0.000176,30]
[403148310,1769206146287,-166.66,0.00016114,2]
[403148313,1769206232068,-500.0,0.00016356,2]
[403148314,1769206232079,-500.0,0.00016356,2]
[403148315,1769206232090,-166.66,0.00016454,2]
[403148316,1769206232100,-151.0,0.00016724,2]
[403148317,1769206232110,-150.0,0.0001673,2]
[403148318,1769206232120,-2289.42126826,0.00016734,2]
[403148356,1769206232506,-950.57873174,0.00016734,2]
[403148358,1769206232515,-150.0,0.0001674,2]
[403148360,1769206232524,-166.66,0.00016793,2]
[403148362,1769206232533,-200.0,0.00016864,2]
[403148364,1769206232541,-219.0,0.00016899,2]
[403148366,1769206232550,-250.0,0.00017,2]
[403148368,1769206232560,-500.0,0.00017068,2]
[403148370,1769206232569,-500.0,0.00017098,2]
[403148372,1769206232578,-174.61919141,0.00017099,2]
[403148374,1769206232587,-500.0,0.00017099,2]
[403148376,1769206232596,-854.2589148,0.00017099,2]
[403148378,1769206232605,-500.0,0.00017099,2]
[403148380,1769206232614,-500.0,0.00017099,2]
[403148382,1769206232622,-500.0,0.00017099,2]
[403148383,1769206232631,-500.0,0.00017099,2]
[403148385,1769206232640,-500.0,0.00017099,2]
[403148387,1769206232650,-500.0,0.00017099,2]
[403148389,1769206232659,-500.0,0.00017099,2]
[403148391,1769206232668,-500.0,0.00017099,2]
[403148393,1769206232678,-500.0,0.00017099,2]
[403148395,1769206232687,-500.0,0.00017099,2]
[403148397,1769206232696,-500.0,0.00017099,2]
[403148399,1769206232705,-500.0,0.00017099,2]
[403148401,1769206232714,-500.0,0.00017099,2]
[403148403,1769206232723,-500.0,0.00017099,2]
[403148405,1769206232732,-500.0,0.00017099,2]
[403148407,1769206232741,-500.0,0.00017099,2]
[403148409,1769206232751,-500.0,0.00017099,2]
[403148411,1769206232760,-500.0,0.00017099,2]
[403148413,1769206232770,-500.0,0.00017099,2]
[403148415,1769206232779,-500.0,0.00017099,2]
[403148417,1769206232789,-500.0,0.00017099,2]
[403148419,1769206232801,-500.0,0.00017099,2]
[403148421,1769206232812,-171.80301479,0.00017099,2]
[403148425,1769206232845,-328.19698521,0.00017099,2]
[403148427,1769206232853,-500.0,0.00017099,2]
[403148429,1769206232862,-500.0,0.00017099,2]
[403148431,1769206232872,-500.0,0.00017099,2]
[403148433,1769206232882,-578.20924308,0.00017099,2]
[403148435,1769206232891,-500.0,0.00017099,2]
[403148437,1769206232899,-500.0,0.00017099,2]
[403148439,1769206232909,-500.0,0.00017099,2]
[403148441,1769206232917,-137.79918464,0.00017099,2]
[403148443,1769206232933,-112.20081536,0.00017099,2]
[403148445,1769206232942,-500.0,0.00017099,2]
[403148447,1769206232950,-54.76588978,0.00017099,2]
[403148454,1769206233004,-445.23411022,0.00017099,2]